bitfinex/quotes_BTCUSD_20250114
["timestamp","ask_amount","ask_price","bid_price","bid_amount"]
[1736821490812,0.0008532,95392.0,95383.0,0.01069409]
[1736821491047,0.0008532,95392.0,95385.0,0.01069542]
[1736821491274,0.0008532,95392.0,95384.0,0.01069475]
[1736821491729,0.0008532,95392.0,95379.0,0.209689]
[1736821491959,0.11280384,95391.0,95385.0,0.01069542]
[1736821492208,0.11080384,95391.0,95373.0,0.00481285]
[1736821492453,0.209676,95386.0,95371.0,0.51917904]
[1736821492661,0.10980384,95385.0,95374.0,0.01067767]
[1736821492889,0.209678,95384.0,95371.0,0.30947404]
[1736821493112,0.209678,95384.0,95375.0,0.01067833]
[1736821493399,0.209678,95384.0,95371.0,0.30947404]
[1736821493608,0.209678,95384.0,95376.0,0.010679]
[1736821493833,0.10980384,95385.0,95371.0,0.30947404]
[1736821494037,0.10980384,95385.0,95377.0,0.01067966]
[1736821494151,0.10967761,95385.0,95371.0,0.30947404]
[1736821494360,0.10967761,95385.0,95378.0,0.01068033]
[1736821494590,0.10967761,95385.0,95373.0,0.209702]
[1736821494796,0.10967761,95385.0,95371.0,0.30947404]
[1736821494997,0.10967761,95385.0,95374.0,0.01067767]
[1736821495238,0.10967761,95385.0,95373.0,0.010677]
[1736821495438,0.209678,95384.0,95375.0,0.01067833]
[1736821495613,0.10980384,95383.0,95374.0,0.01067767]
[1736821495821,0.209683,95382.0,95376.0,0.010679]
[1736821496021,0.10980384,95381.0,95375.0,0.01067833]
[1736821496219,0.209687,95380.0,95377.0,0.01067966]
[1736821496422,0.209691,95378.0,95371.0,0.30947404]
[1736821496624,0.10980384,95377.0,95371.0,0.30947404]
[1736821496821,0.209696,95376.0,95372.0,0.01067634]
[1736821497024,0.10980384,95376.0,95372.0,0.01067634]
[1736821498766,0.001,95377.0,95372.0,0.01067634]
[1736821498966,0.11080384,95377.0,95372.0,0.01067634]
[1736821499167,0.10980384,95377.0,95372.0,0.01067634]
[1736821499392,0.001,95376.0,95372.0,0.01067634]
[1736821499754,0.001,95376.0,95368.0,0.2023]
[1736821499755,0.10980384,95377.0,95368.0,0.2023]
[1736821499950,0.11080384,95377.0,95368.0,0.2023]
[1736821500149,0.11080384,95377.0,95369.0,0.01072529]
[1736821500406,0.31949984,95376.0,95369.0,0.01072529]
[1736821500607,0.10980384,95376.0,95369.0,0.01072529]
[1736821500889,0.10980384,95376.0,95368.0,0.2023]
[1736821501056,0.10980384,95376.0,95370.0,0.01072595]
[1736821501601,0.1,95388.0,95371.0,0.01072662]
[1736821501801,0.10980384,95384.0,95374.0,0.2097]
[1736821502206,0.10980384,95384.0,95375.0,0.01072928]
[1736821502336,0.13087284,95384.0,95375.0,0.01072928]
[1736821502556,0.10980384,95384.0,95375.0,0.01072928]
[1736821502963,0.01182207,95388.0,95375.0,0.01072928]
[1736821502964,0.004,95385.0,95375.0,0.01072928]
[1736821503271,0.0008532,95392.0,95386.0,0.209672]
[1736821503681,0.0008532,95392.0,95387.0,0.01073726]
[1736821504084,0.0008532,95392.0,95386.0,0.209672]
[1736821504301,0.0008532,95392.0,95388.0,0.01073792]
[1736821504612,0.0008532,95392.0,95386.0,0.209672]
[1736821505051,0.0008532,95392.0,95387.0,0.01073726]
[1736821505508,0.0008532,95392.0,95388.0,0.01073792]
[1736821505718,0.0008532,95392.0,95379.0,0.209689]
[1736821505941,0.0008532,95392.0,95389.0,0.01073859]
[1736821506165,0.0008532,95392.0,95379.0,0.209689]
[1736821506166,0.10980384,95391.0,95379.0,0.209689]
[1736821506622,0.10980384,95391.0,95380.0,0.0107326]
[1736821508948,0.0008532,95392.0,95380.0,0.0107326]
[1736821508949,0.1,95381.0,95380.0,0.0107326]
[1736821509149,0.1,95376.0,95369.0,0.1394453]
[1736821509359,0.10980384,95375.0,95357.0,0.00481285]
[1736821509562,0.10980384,95375.0,95370.0,0.0106522]
[1736821509781,0.1,95370.0,95365.0,0.00014603]
[1736821510046,0.209715,95368.0,95365.0,0.00014603]
[1736821510239,0.10980384,95367.0,95365.0,0.00014603]
[1736821511563,0.002,95375.0,95366.0,0.22042191]
[1736821511734,0.002,95375.0,95367.0,0.209716]
[1736821512086,0.002,95375.0,95367.0,0.22042524]
[1736821512295,0.02208938,95392.0,95371.0,0.291507]
[1736821512499,0.10980384,95391.0,95372.0,0.209705]
[1736821512711,0.10980384,95391.0,95380.0,0.209687]
[1736821513126,0.10980384,95391.0,95381.0,0.01071855]
[1736821513360,0.10980384,95391.0,95382.0,0.209683]
[1736821513633,0.10980384,95391.0,95382.0,0.22040222]
[1736821514150,0.11080384,95391.0,95382.0,0.22040222]
[1736821514553,0.11380384,95391.0,95382.0,0.22040222]
[1736821514989,0.11080384,95391.0,95382.0,0.22040222]
[1736821515199,0.11380384,95391.0,95382.0,0.22040222]
[1736821515436,0.11380384,95391.0,95382.0,0.01071922]
[1736821515635,0.11280384,95391.0,95382.0,0.01071922]
[1736821515846,0.11380384,95391.0,95378.0,0.209691]
[1736821516060,0.11380384,95391.0,95383.0,0.01071988]
[1736821516310,0.11380384,95391.0,95374.0,0.2097]
[1736821516311,0.209665,95390.0,95374.0,0.2097]
[1736821516521,0.004,95391.0,95379.0,0.01071722]
[1736821516742,0.003,95391.0,95385.0,0.209676]
[1736821517173,0.10980384,95390.0,95380.0,0.01071789]
[1736821517387,0.10980384,95390.0,95386.0,0.01072188]
[1736821517782,0.10980384,95390.0,95378.0,0.209691]
[1736821518264,0.10980384,95390.0,95380.0,0.209687]
[1736821518738,0.0008532,95392.0,95385.0,0.209674]
[1736821519148,0.001,95391.0,95386.0,0.01072188]
[1736821519544,0.003,95390.0,95386.0,0.01072188]
[1736821520009,0.003,95390.0,95381.0,0.209685]
[1736821520250,0.003,95390.0,95387.0,0.01072254]
[1736821520469,0.003,95390.0,95381.0,0.41937]
[1736821520704,0.004,95390.0,95388.0,0.01072321]
[1736821520919,0.001,95390.0,95381.0,0.209685]
[1736821521265,0.001,95390.0,95382.0,0.01071922]
[1736821521667,0.002,95390.0,95382.0,0.01071922]
[1736821521883,0.001,95390.0,95382.0,0.01071922]
[1736821522095,0.10980384,95389.0,95382.0,0.01071922]
[1736821522314,0.10980384,95389.0,95372.0,0.209703]
[1736821522523,0.10980384,95389.0,95375.0,0.209698]
[1736821522735,0.10980384,95389.0,95375.0,0.01072722]
[1736821523656,0.10980384,95389.0,95376.0,0.209696]
[1736821524047,0.10980384,95389.0,95377.0,0.01068166]
[1736821524254,0.11180384,95389.0,95377.0,0.01068166]
[1736821524821,0.11280384,95389.0,95377.0,0.01068166]
[1736821525019,0.10980384,95389.0,95377.0,0.01068166]
[1736821525222,0.11080384,95389.0,95377.0,0.01068166]
[1736821525427,0.209669,95388.0,95377.0,0.01068166]
[1736821525665,0.10980384,95387.0,95377.0,0.01068166]
[1736821525873,0.10980384,95387.0,95374.0,0.00481285]
[1736821526044,0.10980384,95387.0,95378.0,0.01068233]
[1736821526273,0.10980384,95387.0,95374.0,0.21451285]
[1736821526470,0.10980384,95387.0,95379.0,0.01068299]
[1736821526674,0.10980384,95387.0,95375.0,0.209698]
[1736821526870,0.10980384,95387.0,95380.0,0.01068366]
[1736821527134,0.10980384,95387.0,95375.0,0.209698]
[1736821527348,0.10980384,95387.0,95381.0,0.01068432]
[1736821527562,0.31947584,95387.0,95382.0,0.01068499]
[1736821527794,0.31947584,95387.0,95373.0,0.2023]
[1736821527975,0.10980384,95387.0,95374.0,0.21630215]
[1736821528219,0.10980384,95387.0,95374.0,0.22699114]
[1736821528426,0.01139644,95389.0,95374.0,0.01729314]
[1736821528637,0.0008532,95392.0,95387.0,0.20967]
[1736821528863,0.0008532,95392.0,95375.0,0.209698]
[1736821528864,0.002,95387.0,95383.0,0.20968]
[1736821529886,0.002,95387.0,95384.0,0.00291227]
[1736821530105,0.0018532,95392.0,95384.0,0.00291227]
[1736821530371,0.0008532,95392.0,95384.0,0.00291227]
[1736821530593,0.002,95387.0,95384.0,0.00291227]
[1736821531013,0.0008532,95392.0,95384.0,0.00291227]
[1736821531289,0.10980384,95391.0,95384.0,0.00291227]
[1736821531711,0.10980384,95391.0,95379.0,0.209687]
[1736821532556,0.10980384,95391.0,95380.0,0.00292107]
[1736821533621,0.11080384,95391.0,95381.0,0.01070065]
[1736821533913,0.11280384,95391.0,95381.0,0.01070065]
[1736821534119,0.11180384,95391.0,95382.0,0.00291667]
[1736821534369,0.32246684,95391.0,95382.0,0.00291667]
[1736821534707,0.32046684,95391.0,95382.0,0.00291667]
[1736821534911,0.209677,95385.0,95382.0,0.00291667]
[1736821535132,0.20968,95383.0,95382.0,0.00291667]
[1736821535340,0.209665,95390.0,95374.0,0.0017913]
[1736821535544,0.10980384,95390.0,95374.0,0.0017913]
[1736821535750,0.10980384,95390.0,95380.0,0.209685]
[1736821535950,0.209667,95389.0,95376.0,0.209695]
[1736821536540,0.10980384,95388.0,95374.0,0.0017913]
[1736821536764,0.209684,95382.0,95374.0,0.0017913]
[1736821536964,0.10980384,95381.0,95374.0,0.0017913]
[1736821537168,0.002,95389.0,95374.0,0.0017913]
[1736821537392,0.10980384,95388.0,95375.0,0.209698]
[1736821537599,0.10980384,95388.0,95375.0,0.21263006]
[1736821537851,0.11280384,95388.0,95375.0,0.21263006]
[1736821539102,0.209672,95387.0,95375.0,0.21263006]
[1736821539269,0.10980384,95386.0,95375.0,0.21263006]
[1736821540470,0.209694,95377.0,95375.0,0.00293206]
[1736821540685,0.10980384,95376.0,95375.0,0.00293206]
[1736821540900,0.209698,95375.0,95374.0,0.0017913]
[1736821541112,0.10980384,95375.0,95374.0,0.0017913]
[1736821541351,0.003,95386.0,95374.0,0.2114893]
[1736821541585,0.10980384,95385.0,95374.0,0.2114893]
[1736821541790,0.10980384,95385.0,95375.0,0.01144084]
[1736821542833,0.209669,95388.0,95375.0,0.01144084]
[1736821543057,0.31947284,95388.0,95375.0,0.01144084]
[1736821543245,0.002,95385.0,95376.0,0.209696]
[1736821543655,0.005,95377.0,95376.0,0.209696]
[1736821544067,0.005,95377.0,95376.0,0.21450885]
[1736821544681,0.11180384,95388.0,95377.0,0.209694]
[1736821544913,0.002,95388.0,95381.0,0.209683]
[1736821545315,0.002,95388.0,95382.0,0.00291667]
[1736821545634,0.000853,95391.0,95382.0,0.00291667]
[1736821545842,0.10980384,95390.0,95382.0,0.00291667]
[1736821546036,0.10980384,95390.0,95378.0,0.209691]
[1736821546180,0.10980384,95390.0,95383.0,0.0085141]
[1736821546413,0.10980384,95390.0,95378.0,0.209691]
[1736821546622,0.001,95388.0,95384.0,0.00851477]
[1736821547074,0.003,95388.0,95378.0,0.209691]
[1736821547278,0.002,95388.0,95385.0,0.00851543]
[1736821547483,0.002,95388.0,95378.0,0.419382]
[1736821547681,0.002,95388.0,95382.0,0.209681]
[1736821547856,0.000853,95391.0,95382.0,0.209681]
[1736821548065,0.000853,95391.0,95384.0,0.209676]
[1736821548478,0.000853,95391.0,95385.0,0.0085006]
[1736821548678,0.002,95388.0,95386.0,0.209674]
[1736821548876,0.000853,95391.0,95386.0,0.00290788]
[1736821549155,0.001,95390.0,95387.0,0.00850193]
[1736821549474,0.001,95390.0,95386.0,0.00290788]
[1736821549669,0.000853,95391.0,95386.0,0.00290788]
[1736821549880,0.000853,95391.0,95387.0,0.00850193]
[1736821550277,0.003853,95391.0,95381.0,0.209684]
[1736821550707,0.000853,95391.0,95381.0,0.209684]
[1736821552729,0.000853,95391.0,95382.0,0.209683]
[1736821553081,0.000853,95391.0,95382.0,0.419366]
[1736821554318,0.000853,95391.0,95382.0,0.420366]
[1736821554520,0.000853,95391.0,95383.0,0.20968]
[1736821554729,0.000853,95391.0,95390.0,0.00481285]
[1736821554946,0.000853,95391.0,95390.0,0.13761669]
[1736821555160,0.000853,95391.0,95390.0,0.02781285]
[1736821555367,0.000853,95391.0,95390.0,0.01454571]
[1736821556039,0.000853,95391.0,95390.0,0.01554571]
[1736821556475,0.000853,95391.0,95390.0,0.00581285]
[1736821556726,0.000853,95391.0,95390.0,0.005]
[1736821556887,0.000853,95391.0,95390.0,0.00981285]
[1736821557677,0.000853,95391.0,95390.0,0.00881285]
[1736821558299,0.001853,95391.0,95390.0,0.01381285]
[1736821559148,0.001853,95391.0,95390.0,0.29661669]
[1736821559370,0.001853,95391.0,95390.0,0.49391669]
[1736821559817,0.001853,95391.0,95390.0,0.57151669]
[1736821560052,0.001853,95391.0,95390.0,0.43871285]
[1736821562059,0.001853,95391.0,95390.0,0.57151669]
[1736821563678,0.001853,95391.0,95390.0,0.58027171]
[1736821565408,0.001853,95391.0,95390.0,0.88974575]
[1736821567519,0.001853,95391.0,95390.0,0.89638575]
[1736821567729,0.001853,95391.0,95390.0,0.78276906]
[1736821568160,0.001853,95391.0,95390.0,0.77612906]
[1736821568359,0.001853,95391.0,95390.0,0.32322906]
[1736821568532,0.001853,95391.0,95390.0,0.32704191]
[1736821568939,0.001853,95391.0,95390.0,0.60094191]
[1736821569194,0.001853,95391.0,95390.0,0.73374575]
[1736821569652,0.000853,95391.0,95390.0,0.72874575]
[1736821569827,0.000853,95391.0,95390.0,0.93104575]
[1736821570077,0.001853,95391.0,95390.0,2.43604575]
[1736821570474,0.001853,95391.0,95390.0,2.43904575]
[1736821570850,0.001853,95391.0,95390.0,2.45019311]
[1736821571241,0.001853,95391.0,95390.0,2.44519311]
[1736821571446,0.000853,95391.0,95390.0,2.44519311]
[1736821571645,0.0008532,95392.0,95391.0,0.56407585]
[1736821571855,0.0008532,95392.0,95391.0,0.57387969]
[1736821572059,0.0008532,95392.0,95391.0,0.58253588]
[1736821572466,0.0008532,95392.0,95391.0,0.68253588]
[1736821572878,0.0028532,95392.0,95391.0,0.73095556]
[1736821573094,0.0028532,95392.0,95391.0,0.70121991]
[1736821573308,0.0028532,95392.0,95391.0,0.60121991]
[1736821573518,0.0028532,95392.0,95391.0,0.70121991]
[1736821573718,0.0028532,95392.0,95391.0,2.20121991]
[1736821573918,0.0028532,95392.0,95391.0,2.10121991]
[1736821574148,0.0028532,95392.0,95391.0,2.20121991]
[1736821574339,0.0028532,95392.0,95391.0,2.85238348]
[1736821574567,0.0028532,95392.0,95391.0,2.74269945]
[1736821575586,0.0028532,95392.0,95391.0,2.74933945]
[1736821575792,0.0028532,95392.0,95391.0,1.10994992]
[1736821576611,0.0028532,95392.0,95391.0,1.10330992]
[1736821579835,0.0028532,95392.0,95391.0,2.60330992]
[1736821580648,0.0028532,95392.0,95391.0,0.99350608]
[1736821580859,0.0028532,95392.0,95391.0,0.23113204]
[1736821581086,0.0028532,95392.0,95391.0,0.01765619]
[1736821581287,0.0028532,95392.0,95391.0,0.02146904]
[1736821581695,0.0008532,95392.0,95391.0,0.01246904]
[1736821581896,0.0008532,95392.0,95391.0,0.01546904]
[1736821582098,0.0018532,95392.0,95391.0,0.01946904]
[1736821582303,0.0018532,95392.0,95391.0,0.01546904]
[1736821582508,0.0018532,95392.0,95391.0,0.01246904]
[1736821582754,0.0018532,95392.0,95391.0,0.01446904]
[1736821582977,0.0008532,95392.0,95391.0,0.01246904]
[1736821583594,0.0008532,95392.0,95391.0,0.01346904]
[1736821584796,0.0008532,95392.0,95391.0,0.01246904]
[1736821585269,0.0008532,95392.0,95391.0,0.01646904]
[1736821585479,0.0008532,95392.0,95391.0,0.01746904]
[1736821585691,0.0008532,95392.0,95391.0,0.01346904]
[1736821585890,0.0008532,95392.0,95391.0,0.01646904]
[1736821586167,0.0008532,95392.0,95391.0,0.01346904]
[1736821586403,0.0008532,95392.0,95391.0,0.21195619]
[1736821586616,0.0008532,95392.0,95391.0,0.00965619]
[1736821586617,0.1312532,95392.0,95391.0,0.00965619]
[1736821586821,0.1312532,95392.0,95391.0,0.00865619]
[1736821586822,0.45071804,95392.0,95391.0,0.00865619]
[1736821587238,0.24105704,95392.0,95390.0,0.00179109]
[1736821587446,0.10980384,95391.0,95390.0,0.00179109]
[1736821588293,0.1312532,95392.0,95390.0,0.00179109]
[1736821588493,0.1312532,95392.0,95391.0,0.004]
[1736821588717,0.1312532,95392.0,95391.0,0.00527939]
[1736821588950,0.007,95391.0,95390.0,0.00179109]
[1736821589444,0.002,95391.0,95390.0,0.00179109]
[1736821589651,0.1312532,95392.0,95390.0,0.00179109]
[1736821589652,0.1322532,95392.0,95390.0,0.00179109]
[1736821589861,0.1332532,95392.0,95390.0,0.00179109]
[1736821590062,0.1322532,95392.0,95390.0,0.00179109]
[1736821590478,0.0501532,95392.0,95390.0,0.00179109]
[1736821590688,0.0018532,95392.0,95391.0,0.209663]
[1736821591333,0.0008532,95392.0,95391.0,0.209663]
[1736821592671,0.0008532,95392.0,95391.0,0.210663]
[1736821592871,0.0008532,95392.0,95391.0,0.209663]
[1736821593175,0.0028532,95392.0,95391.0,0.209663]
[1736821593765,0.0028532,95392.0,95391.0,0.21500151]
[1736821594173,0.0028532,95392.0,95391.0,0.65161436]
[1736821594375,0.0008532,95392.0,95391.0,0.65161436]
[1736821594605,0.0008532,95392.0,95391.0,0.65261436]
[1736821595027,0.0008532,95392.0,95391.0,0.65161436]
[1736821595260,0.0018532,95392.0,95391.0,0.65161436]
[1736821595428,0.0018532,95392.0,95391.0,0.65261436]
[1736821595835,0.0028532,95392.0,95391.0,0.65661436]
[1736821596186,0.0008532,95392.0,95391.0,1.92111436]
[1736821596401,0.0008532,95392.0,95391.0,0.42711436]
[1736821596581,0.0018532,95392.0,95391.0,0.42711436]
[1736821597661,0.0008532,95392.0,95391.0,0.42111436]
[1736821597863,0.0008532,95392.0,95391.0,0.42311436]
[1736821598063,0.0008532,95392.0,95391.0,0.42611436]
[1736821598363,0.0008532,95392.0,95391.0,0.21881436]
[1736821598573,0.0008532,95392.0,95391.0,0.22081436]
[1736821598767,0.0008532,95392.0,95391.0,0.22181436]
[1736821599100,0.0008532,95392.0,95391.0,0.21979239]
[1736821599228,0.0008532,95392.0,95391.0,0.21879239]
[1736821599435,0.0008532,95392.0,95391.0,0.21779239]
[1736821600080,0.0008532,95392.0,95391.0,0.22160524]
[1736821600670,0.0008532,95392.0,95391.0,0.22060524]
[1736821601028,0.0008532,95392.0,95391.0,0.21979239]
[1736821601271,0.0008532,95392.0,95391.0,0.22060524]
[1736821601691,0.0018532,95392.0,95391.0,0.22560524]
[1736821602155,0.0018532,95392.0,95391.0,0.22460524]
[1736821602361,0.0018532,95392.0,95391.0,0.22660524]
[1736821602984,0.0008532,95392.0,95391.0,0.22260524]
[1736821603799,0.0008532,95392.0,95391.0,0.22060524]
[1736821604241,0.0008532,95392.0,95391.0,0.42490524]
[1736821604647,0.0008532,95392.0,95391.0,0.42290524]
[1736821604870,0.0018532,95392.0,95391.0,0.42890524]
[1736821605516,0.0018532,95392.0,95391.0,0.42690524]
[1736821605722,0.0018532,95392.0,95391.0,0.42890524]
[1736821606992,0.0018532,95392.0,95391.0,0.01312939]
[1736821607842,0.0018532,95392.0,95391.0,0.01112939]
[1736821608049,0.0008532,95392.0,95391.0,0.00712939]
[1736821608495,0.0008532,95392.0,95391.0,0.01294224]
[1736821608873,0.0008532,95392.0,95391.0,0.09614224]
[1736821609080,0.0008532,95392.0,95391.0,0.09414224]
[1736821609522,0.0018532,95392.0,95391.0,0.30780524]
[1736821609737,0.0018532,95392.0,95391.0,0.31070213]
[1736821609988,0.0018532,95392.0,95391.0,0.22750213]
[1736821610162,0.0018532,95392.0,95391.0,0.42980213]
[1736821610501,0.0018532,95392.0,95391.0,0.42598928]
[1736821610764,0.0018532,95392.0,95391.0,0.21632628]
[1736821610917,0.0018532,95392.0,95391.0,0.21432628]
[1736821611149,0.0008532,95392.0,95391.0,0.21432628]
[1736821611398,0.0018532,95392.0,95391.0,0.21632628]
[1736821611634,0.0018532,95392.0,95391.0,0.21232628]
[1736821612444,0.11165704,95392.0,95391.0,0.01002628]
[1736821612697,0.11065704,95392.0,95391.0,0.01002628]
[1736821612899,0.11065704,95392.0,95391.0,0.00468777]
[1736821613134,0.11065704,95392.0,95391.0,0.00568777]
[1736821613327,0.0008532,95392.0,95391.0,0.00568777]
[1736821613658,0.0008532,95392.0,95391.0,0.01427486]
[1736821613865,0.0008532,95392.0,95391.0,0.00858466]
[1736821614283,0.0008532,95392.0,95391.0,0.00758466]
[1736821617353,0.0008532,95392.0,95391.0,0.00468777]
[1736821619735,0.0008532,95392.0,95391.0,0.00758466]
[1736821622952,0.0018532,95392.0,95391.0,0.21369751]
[1736821623392,0.0018532,95392.0,95391.0,0.20988466]
[1736821623622,0.0018532,95392.0,95391.0,0.21369751]
[1736821623825,0.0008532,95392.0,95391.0,0.2194322]
[1736821624031,0.00272703,95392.0,95391.0,0.2194322]
[1736821624244,0.00072703,95392.0,95391.0,0.2984322]
[1736821624387,0.00072703,95392.0,95391.0,0.2994322]
[1736821624808,0.00072703,95392.0,95391.0,0.2984322]
[1736821625021,0.00172703,95392.0,95391.0,0.3024322]
[1736821625228,0.00172703,95392.0,95391.0,0.2984322]
[1736821625666,0.00272703,95392.0,95391.0,0.3024322]
[1736821626021,0.00272703,95392.0,95391.0,0.3034322]
[1736821626489,0.00272703,95392.0,95391.0,0.3264322]
[1736821627146,0.00272703,95392.0,95391.0,0.3254322]
[1736821627359,0.00072703,95392.0,95391.0,0.3214322]
[1736821627596,0.00172703,95392.0,95391.0,0.3264322]
[1736821627812,0.00172703,95392.0,95391.0,0.2994322]
[1736821628068,0.00172703,95392.0,95391.0,0.2204322]
[1736821628322,0.00272703,95392.0,95391.0,0.2244322]
[1736821628543,0.00172703,95392.0,95391.0,0.21661935]
[1736821628798,0.00272703,95392.0,95391.0,0.22061935]
[1736821629029,0.00272703,95392.0,95391.0,0.21661935]
[1736821629030,0.00072703,95392.0,95391.0,0.21661935]
[1736821629491,0.00072703,95392.0,95391.0,0.21561935]
[1736821629734,0.00072703,95392.0,95391.0,0.21761935]
[1736821630271,0.00072703,95392.0,95391.0,0.2194322]
[1736821630509,0.00172703,95392.0,95391.0,0.21761935]
[1736821630730,0.00172703,95392.0,95391.0,0.21561935]
[1736821630950,0.00072703,95392.0,95391.0,0.21561935]
[1736821631180,0.00272703,95392.0,95391.0,0.21561935]
[1736821631442,0.00372703,95392.0,95391.0,0.21561935]
[1736821631662,0.00172703,95392.0,95391.0,0.21561935]
[1736821631894,0.00272703,95392.0,95391.0,0.21561935]
[1736821632614,0.00172703,95392.0,95391.0,0.21561935]
[1736821633019,0.00272703,95392.0,95391.0,0.21561935]
[1736821633529,0.00272703,95392.0,95391.0,0.2194322]
[1736821633732,0.00272703,95392.0,95391.0,0.21561935]
[1736821633991,0.00172703,95392.0,95391.0,0.21561935]
[1736821634215,0.00172703,95392.0,95391.0,0.01331935]
[1736821634398,0.00472703,95392.0,95391.0,0.01331935]
[1736821634708,0.00172703,95392.0,95391.0,0.01331935]
[1736821634851,0.00172703,95392.0,95391.0,0.0171322]
[1736821635059,0.00272703,95392.0,95391.0,0.0171322]
[1736821635260,0.00272703,95392.0,95391.0,0.01331935]
[1736821635460,0.00272703,95392.0,95391.0,0.0171322]
[1736821636598,0.00272703,95392.0,95391.0,0.01331935]
[1736821636792,0.11153087,95392.0,95391.0,0.01331935]
[1736821636988,0.11153087,95392.0,95391.0,0.01042246]
[1736821637187,0.11153087,95392.0,95391.0,0.00468777]
[1736821637436,0.11053087,95392.0,95391.0,0.00468777]
[1736821638178,0.12120997,95392.0,95391.0,0.00468777]
[1736821638727,0.12220997,95392.0,95391.0,0.00468777]
[1736821639139,0.12120997,95392.0,95391.0,0.00468777]
[1736821639339,0.12520997,95392.0,95391.0,0.00468777]
[1736821639563,0.12620997,95392.0,95391.0,0.00468777]
[1736821640196,0.12520997,95392.0,95391.0,0.00468777]
[1736821640396,0.12620997,95392.0,95391.0,0.00468777]
[1736821641240,0.12220997,95392.0,95391.0,0.00468777]
[1736821641652,0.12320997,95392.0,95391.0,0.00468777]
[1736821642443,0.11253087,95392.0,95391.0,0.00468777]
[1736821642656,0.00172703,95392.0,95391.0,0.00468777]
[1736821642887,0.00172703,95392.0,95391.0,0.00758466]
[1736821643042,0.00272703,95392.0,95391.0,0.01189775]
[1736821643471,0.00172703,95392.0,95391.0,0.01189775]
[1736821643722,0.00072703,95392.0,95391.0,0.22156075]
[1736821644065,0.00172703,95392.0,95391.0,0.22156075]
[1736821644670,0.00172703,95392.0,95391.0,0.22256075]
[1736821645950,0.00172703,95392.0,95391.0,0.01289775]
[1736821647915,0.00072703,95392.0,95391.0,0.01189775]
[1736821648370,0.00372703,95392.0,95391.0,0.01189775]
[1736821648874,0.00672703,95392.0,95391.0,0.01189775]
[1736821649284,0.19363087,95392.0,95391.0,0.01189775]
[1736821649563,0.19263087,95392.0,95391.0,0.01189775]
[1736821649791,0.19263087,95392.0,95391.0,0.00468777]
[1736821650015,0.19363087,95392.0,95391.0,0.00468777]
[1736821650215,0.11753087,95392.0,95391.0,0.00468777]
[1736821650582,0.11053087,95392.0,95391.0,0.00468777]
[1736821651013,0.11253087,95392.0,95391.0,0.00468777]
[1736821651418,0.11053087,95392.0,95391.0,0.00468777]
[1736821651654,0.12158905,95392.0,95391.0,0.00468777]
[1736821652064,0.12558905,95392.0,95391.0,0.00468777]
[1736821652508,0.12458905,95392.0,95391.0,0.00468777]
[1736821652892,0.12758905,95392.0,95391.0,0.00468777]
[1736821653593,0.12458905,95392.0,95391.0,0.00468777]
[1736821653789,0.12758905,95392.0,95391.0,0.00468777]
[1736821653992,0.12458905,95392.0,95391.0,0.00468777]
[1736821654424,0.13158905,95392.0,95391.0,0.00468777]
[1736821654801,0.12458905,95392.0,95391.0,0.00468777]
[1736821655001,0.12158905,95392.0,95391.0,0.00468777]
[1736821655405,0.13058905,95392.0,95391.0,0.00468777]
[1736821655814,0.12758905,95392.0,95391.0,0.00468777]
[1736821656168,0.13058905,95392.0,95391.0,0.00468777]
[1736821658983,0.11953087,95392.0,95391.0,0.00468777]
[1736821659948,0.00972703,95392.0,95391.0,0.00468777]
[1736821660203,0.00972703,95392.0,95391.0,0.01220209]
[1736821661450,0.00372703,95392.0,95391.0,0.01220209]
[1736821661650,0.00072703,95392.0,95391.0,0.01220209]
[1736821662069,0.00172703,95392.0,95391.0,0.01720209]
[1736821662323,0.00072703,95392.0,95391.0,0.01320209]
[1736821662673,0.11053087,95392.0,95391.0,0.01220209]
[1736821663071,0.11053087,95392.0,95391.0,0.0093052]
[1736821663281,0.11053087,95392.0,95391.0,0.00468777]
[1736821663490,0.12147043,95392.0,95391.0,0.00468777]
[1736821663695,0.12247043,95392.0,95391.0,0.00568777]
[1736821663901,0.12247043,95392.0,95391.0,0.00468777]
[1736821664350,0.12647043,95392.0,95391.0,0.00468777]
[1736821664799,0.12947043,95392.0,95391.0,0.00468777]
[1736821665000,0.12847043,95392.0,95391.0,0.00468777]
[1736821665238,0.13047043,95392.0,95391.0,0.00468777]
[1736821665612,0.12347043,95392.0,95391.0,0.00468777]
[1736821665831,0.12147043,95392.0,95391.0,0.00468777]
[1736821666041,0.12247043,95392.0,95391.0,0.00468777]
[1736821666491,0.00172703,95392.0,95391.0,0.21894614]
[1736821666706,0.00172703,95392.0,95391.0,0.29614614]
[1736821666914,0.00472703,95392.0,95391.0,0.29614614]
[1736821667117,0.00372703,95392.0,95391.0,0.29614614]
[1736821667320,0.00072703,95392.0,95391.0,0.29614614]
[1736821667933,0.00172703,95392.0,95391.0,0.29614614]
[1736821668334,0.00072703,95392.0,95391.0,0.29614614]
[1736821668534,0.00072703,95392.0,95391.0,0.30014614]
[1736821668882,0.00172703,95392.0,95391.0,0.22294614]
[1736821669085,0.11153087,95392.0,95391.0,0.01328314]
[1736821669308,0.11053087,95392.0,95391.0,0.01328314]
[1736821669655,0.11053087,95392.0,95391.0,0.00968777]
[1736821669861,0.11053087,95392.0,95391.0,0.00568777]
[1736821670060,0.11053087,95392.0,95391.0,0.00468777]
[1736821670422,0.11153087,95392.0,95391.0,0.00468777]
[1736821670822,0.11353087,95392.0,95391.0,0.00468777]
[1736821671434,0.15893087,95392.0,95391.0,0.00468777]
[1736821671655,0.15593087,95392.0,95391.0,0.00468777]
[1736821671867,0.15693087,95392.0,95391.0,0.00468777]
[1736821672077,0.15793087,95392.0,95391.0,0.00468777]
[1736821672633,0.15693087,95392.0,95391.0,0.00468777]
[1736821672875,0.16093087,95392.0,95391.0,0.00468777]
[1736821673252,0.15993087,95392.0,95391.0,0.00468777]
[1736821673453,0.15593087,95392.0,95391.0,0.00468777]
[1736821673660,0.15893087,95392.0,95391.0,0.00468777]
[1736821673960,0.15693087,95392.0,95391.0,0.00468777]
[1736821674190,0.16293087,95392.0,95391.0,0.00468777]
[1736821674365,0.15693087,95392.0,95391.0,0.00468777]
[1736821674882,0.16193087,95392.0,95391.0,0.00468777]
[1736821675086,0.16093087,95392.0,95391.0,0.00468777]
[1736821675334,0.16293087,95392.0,95391.0,0.00468777]
[1736821675934,0.16093087,95392.0,95391.0,0.00468777]
[1736821676149,0.16293087,95392.0,95391.0,0.00468777]
[1736821676324,0.15793087,95392.0,95391.0,0.00468777]
[1736821676726,0.16193087,95392.0,95391.0,0.00468777]
[1736821676946,0.16393087,95392.0,95391.0,0.00468777]
[1736821682584,0.11853087,95392.0,95391.0,0.00468777]
[1736821683010,0.11653087,95392.0,95391.0,0.00468777]
[1736821683433,0.11853087,95392.0,95391.0,0.00468777]
[1736821683815,0.11253087,95392.0,95391.0,0.00468777]